fUSD/lending_fUSD_20240712
["ID","MTS","AMOUNT","RATE_DAILY","PERIOD"]
[331749642,1720751441509,-500.0,0.00013798,2]
[331749643,1720751441518,-500.70193944,0.00013798,2]
[331749644,1720751441528,-500.0,0.00013798,2]
[331749645,1720751441538,-500.0,0.00013798,2]
[331749646,1720751441547,-500.0,0.00013798,2]
[331749647,1720751441557,-500.0,0.00013798,2]
[331749648,1720751441567,-500.0,0.00013798,2]
[331749649,1720751441575,-500.0,0.00013798,2]
[331749650,1720751441584,-500.0,0.00013798,2]
[331749651,1720751441594,-320.41180516,0.00013798,2]
[331749652,1720751441603,-500.0,0.00013798,2]
[331749653,1720751441615,-500.0,0.00013798,2]
[331749654,1720751441624,-500.0,0.00013798,2]
[331749655,1720751441634,-500.0,0.00013798,2]
[331749656,1720751441644,-500.0,0.00013798,2]
[331749657,1720751441653,-500.0,0.00013798,2]
[331749658,1720751441662,-500.0,0.00013798,2]
[331749659,1720751441671,-486.97397984,0.00013798,2]
[331749660,1720751441680,-500.0,0.00013798,2]
[331749661,1720751441690,-616.42,0.00013798,2]
[331749662,1720751441699,-500.0,0.00013798,2]
[331749663,1720751441708,-500.0,0.00013798,2]
[331749664,1720751441717,-722.46,0.00013798,2]
[331749665,1720751441726,-500.0,0.00013798,2]
[331749666,1720751441735,-500.0,0.00013798,2]
[331749667,1720751441744,-500.0,0.00013798,2]
[331749668,1720751441754,-500.0,0.00013798,2]
[331749669,1720751441763,-500.0,0.00013798,2]
[331749670,1720751441773,-500.0,0.00013798,2]
[331749671,1720751441782,-529.1404391,0.00013798,2]
[331749672,1720751441791,-500.0,0.00013798,2]
[331749673,1720751441800,-500.0,0.00013798,2]
[331749674,1720751441810,-311.25,0.00013798,2]
[331749675,1720751441819,-500.0,0.00013798,2]
[331749676,1720751441829,-500.0,0.00013798,2]
[331749677,1720751441838,-500.0,0.00013798,2]
[331749678,1720751441848,-500.0,0.00013798,2]
[331749679,1720751441858,-500.0,0.00013798,2]
[331749680,1720751441867,-500.0,0.00013798,2]
[331749681,1720751441876,-500.0,0.00013798,2]
[331749682,1720751441886,-258.27649049,0.00013798,2]
[331749683,1720751441903,-241.72350951,0.00013798,2]
[331749684,1720751441912,-155.48442728,0.00013798,2]
[331749685,1720751441923,-500.0,0.00013798,2]
[331749686,1720751441934,-500.0,0.00013798,2]
[331749687,1720751441946,-34.28703453,0.00013798,2]
[331749688,1720751441957,-465.71296547,0.00013798,2]
[331749689,1720751441967,-500.0,0.00013798,2]
[331749690,1720751441978,-500.0,0.00013798,2]
[331749691,1720751441988,-824.79,0.00013798,2]
[331749692,1720751441998,-500.0,0.00013798,2]
[331749693,1720751442008,-70.07703453,0.00013798,2]
[331749694,1720751442019,-429.92296547,0.00013798,2]
[331749695,1720751442031,-289.81511956,0.00013798,2]
[331749696,1720751442040,-500.0,0.00013798,2]
[331749697,1720751442050,-218.47637422,0.00013798,2]
[331749698,1720751442068,-281.52362578,0.00013798,2]
[331749699,1720751442079,-500.0,0.00013798,2]
[331749700,1720751442091,-222.02070077,0.00013798,2]
[331749706,1720751444265,-181.32,0.00012855,2]
[331749707,1720751444275,-282.70185373,0.00013699,2]
[331749733,1720751446438,-1087.15276736,0.00013699,2]
[331749739,1720751446577,-3355.86487891,0.00013699,2]
[331749740,1720751446587,-277.97929923,0.00013798,2]
[331749741,1720751446596,-500.0,0.00013798,2]
[331749742,1720751446605,-500.0,0.00013798,2]
[331749743,1720751446615,-500.0,0.00013798,2]
[331749744,1720751446625,-518.65502582,0.00013798,2]
[331749745,1720751446634,-500.0,0.00013798,2]
[331749746,1720751446643,-617.23,0.00013798,2]
[331749747,1720751446653,-500.0,0.00013798,2]
[331749748,1720751446662,-500.0,0.00013798,2]
[331749749,1720751446672,-500.0,0.00013798,2]
[331749750,1720751446681,-380.79035376,0.00013798,2]
[331749751,1720751446690,-500.0,0.00013798,2]
[331749752,1720751446699,-500.0,0.00013798,2]
[331749753,1720751446710,-500.0,0.00013798,2]
[331749754,1720751446721,-500.0,0.00013798,2]
[331749755,1720751446732,-500.0,0.00013798,2]
[331749756,1720751446742,-500.0,0.00013798,2]
[331749757,1720751446754,-208.64551082,0.00013798,2]
[331749758,1720751446765,-500.0,0.00013798,2]
[331749759,1720751446775,-500.0,0.00013798,2]
[331749760,1720751446785,-703.51,0.00013798,2]
[331749761,1720751446797,-500.0,0.00013798,2]
[331749762,1720751446808,-500.0,0.00013798,2]
[331749763,1720751446817,-500.0,0.00013798,2]
[331749764,1720751446827,-500.0,0.00013798,2]
[331749765,1720751446837,-500.0,0.00013798,2]
[331749766,1720751446846,-500.0,0.00013798,2]
[331749767,1720751446855,-500.0,0.00013798,2]
[331749768,1720751446865,-500.0,0.00013798,2]
[331749769,1720751446874,-500.0,0.00013798,2]
[331749770,1720751446883,-500.0,0.00013798,2]
[331749771,1720751446892,-500.0,0.00013798,2]
[331749772,1720751446901,-500.0,0.00013798,2]
[331749773,1720751446911,-500.0,0.00013798,2]
[331749774,1720751446920,-500.0,0.00013798,2]
[331749775,1720751446931,-500.0,0.00013798,2]
[331749776,1720751446941,-500.0,0.00013798,2]
[331749777,1720751446950,-500.0,0.00013798,2]
[331749778,1720751446959,-500.0,0.00013798,2]
[331749779,1720751446969,-500.0,0.00013798,2]
[331749780,1720751446979,-500.0,0.00013798,2]
[331749781,1720751446989,-544.89149071,0.00013798,2]
[331749782,1720751446998,-647.4555834,0.00013798,2]
[331749783,1720751447008,-500.0,0.00013798,2]
[331749784,1720751447017,-525.05327933,0.00013798,2]
[331749785,1720751447028,-500.0,0.00013798,2]
[331749786,1720751447037,-500.0,0.00013798,2]
[331749787,1720751447046,-500.0,0.00013798,2]
[331749788,1720751447055,-500.0,0.00013798,2]
[331749789,1720751447065,-500.0,0.00013798,2]
[331749790,1720751447075,-500.0,0.00013798,2]
[331749791,1720751447084,-500.0,0.00013798,2]
[331749792,1720751447093,-324.55261076,0.00013798,2]
[331749793,1720751447102,-586.46576694,0.00013798,2]
[331749794,1720751447111,-500.0,0.00013798,2]
[331749795,1720751447122,-500.0,0.00013798,2]
[331749796,1720751447131,-500.0,0.00013798,2]
[331749797,1720751447141,-500.0,0.00013798,2]
[331749798,1720751447151,-500.0,0.00013798,2]
[331749799,1720751447165,-500.0,0.00013798,2]
[331749800,1720751447175,-316.14938764,0.00013798,2]
[331749801,1720751447186,-519.87,0.00013798,2]
[331749802,1720751447197,-500.0,0.00013798,2]
[331749803,1720751447209,-500.0,0.00013798,2]
[331749804,1720751447220,-500.0,0.00013798,2]
[331749805,1720751447230,-983.65,0.00013798,2]
[331749806,1720751447242,-500.0,0.00013798,2]
[331749807,1720751447253,-732.46,0.00013798,2]
[331749808,1720751447263,-500.0,0.00013798,2]
[331749809,1720751447275,-600.75,0.00013798,2]
[331749810,1720751447286,-820.31,0.00013798,2]
[331749811,1720751447296,-1360.77,0.00013798,2]
[331749812,1720751447306,-178.10557447,0.00013798,2]
[331749813,1720751447315,-500.0,0.00013798,2]
[331749814,1720751447325,-500.0,0.00013798,2]
[331749815,1720751447337,-980.17,0.00013798,2]
[331749816,1720751447346,-500.0,0.00013798,2]
[331749817,1720751447356,-884.0,0.00013798,2]
[331749818,1720751447367,-500.0,0.00013798,2]
[331749819,1720751447376,-500.0,0.00013798,2]
[331749820,1720751447385,-500.0,0.00013798,2]
[331749821,1720751447395,-500.0,0.00013798,2]
[331749822,1720751447406,-500.0,0.00013798,2]
[331749823,1720751447417,-500.0,0.00013798,2]
[331749824,1720751447426,-500.0,0.00013798,2]
[331749825,1720751447436,-500.0,0.00013798,2]
[331749826,1720751447445,-500.0,0.00013798,2]
[331749827,1720751447454,-500.0,0.00013798,2]
[331749829,1720751447463,-2463.81,0.00013798,2]
[331749831,1720751447473,-500.0,0.00013798,2]
[331749834,1720751447482,-500.0,0.00013798,2]
[331749835,1720751447492,-500.0,0.00013798,2]
[331749837,1720751447503,-500.0,0.00013798,2]
[331749838,1720751447513,-500.0,0.00013798,2]
[331749839,1720751447523,-1121.93,0.00013798,2]
[331749840,1720751447532,-500.0,0.00013798,2]
[331749841,1720751447541,-500.0,0.00013798,2]
[331749842,1720751447551,-500.0,0.00013798,2]
[331749843,1720751447560,-500.83195581,0.00013798,2]
[331749844,1720751447569,-500.0,0.00013798,2]
[331749845,1720751447579,-500.0,0.00013798,2]
[331749846,1720751447589,-500.0,0.00013798,2]
[331749847,1720751447598,-500.0,0.00013798,2]
[331749848,1720751447607,-500.0,0.00013798,2]
[331749849,1720751447617,-500.0,0.00013798,2]
[331749850,1720751447627,-500.0,0.00013798,2]
[331749851,1720751447636,-500.0,0.00013798,2]
[331749852,1720751447648,-500.0,0.00013798,2]
[331749853,1720751447657,-566.37,0.00013798,2]
[331749854,1720751447667,-500.0,0.00013798,2]
[331749855,1720751447676,-500.0,0.00013798,2]
[331749856,1720751447685,-541.24706539,0.00013798,2]
[331749857,1720751447694,-500.0,0.00013798,2]
[331749858,1720751447703,-500.0,0.00013798,2]
[331749859,1720751447711,-500.0,0.00013798,2]
[331749860,1720751447720,-500.0,0.00013798,2]
[331749861,1720751447730,-500.0,0.00013798,2]
[331749862,1720751447739,-500.0,0.00013798,2]
[331749863,1720751447749,-3006.05,0.00013798,2]
[331749864,1720751447758,-500.0,0.00013798,2]
[331749865,1720751447767,-500.0,0.00013798,2]
[331749866,1720751447776,-500.0,0.00013798,2]
[331749867,1720751447785,-500.0,0.00013798,2]
[331749868,1720751447794,-500.0,0.00013798,2]
[331749869,1720751447803,-500.0,0.00013798,2]
[331749870,1720751447813,-500.0,0.00013798,2]
[331749871,1720751447821,-500.0,0.00013798,2]
[331749872,1720751447831,-500.0,0.00013798,2]
[331749873,1720751447840,-500.0,0.00013798,2]
[331749874,1720751447849,-500.0,0.00013798,2]
[331749875,1720751447859,-500.0,0.00013798,2]
[331749876,1720751447869,-500.0,0.00013798,2]
[331749877,1720751447878,-500.0,0.00013798,2]
[331749878,1720751447887,-500.0,0.00013798,2]
[331749879,1720751447896,-500.0,0.00013798,2]
[331749880,1720751447905,-500.0,0.00013798,2]
[331749881,1720751447915,-531.52,0.00013798,2]
[331749882,1720751447924,-501.4353071,0.00013798,2]
[331749883,1720751447933,-500.0,0.00013798,2]
[331749884,1720751447943,-500.0,0.00013798,2]
[331749885,1720751447952,-529.31,0.00013798,2]
[331749886,1720751447962,-500.0,0.00013798,2]
[331749887,1720751447972,-500.0,0.00013798,2]
[331749888,1720751447981,-500.0,0.00013798,2]
[331749889,1720751447989,-500.0,0.00013798,2]
[331749890,1720751447999,-500.0,0.00013798,2]
[331749891,1720751448008,-500.0,0.00013798,2]
[331749892,1720751448017,-500.0,0.00013798,2]
[331749893,1720751448027,-500.0,0.00013798,2]
[331749894,1720751448036,-500.0,0.00013798,2]
[331749895,1720751448046,-500.0,0.00013798,2]
[331749896,1720751448055,-500.0,0.00013798,2]
[331749897,1720751448064,-259.09056936,0.00013798,2]
[331749898,1720751448073,-150.0,0.00013798,2]
[331749899,1720751448082,-11892.66172701,0.00013799,2]
[331749900,1720751448096,-2896.5521411,0.00013799,2]
[331749901,1720751448141,-2325.58293076,0.00013799,2]
[331749902,1720751484786,517.746709,0.0001126,2]
[331749903,1720751644084,1314.8840523,0.00011199,2]
[331749904,1720751695770,451.45890392,0.00011199,2]
[331749905,1720751716838,390.27,0.00010678,2]
[331749906,1720751723322,286.34283041,0.00011199,2]
[331749907,1720751827747,-1977.0,0.00012275,2]
[331749908,1720751892711,298.01706206,0.00011199,2]
[331749913,1720752091168,438.32923647,0.00011199,2]
[331749914,1720752206267,218.70616944,0.00011199,2]
[331749915,1720752272154,155.0,0.00011199,2]
[331749916,1720752284544,1039.69,0.00025,60]
[331749917,1720752359693,2000.0,0.00025,60]
[331749918,1720752418678,370.75,0.00010937,2]
[331749919,1720752451248,1000.0,0.00025,60]
[331749920,1720752511347,155.17827913,0.00011199,2]
[331749924,1720752569342,1108.02599737,0.00011199,2]
[331749927,1720752631728,-450.0,0.00012017,2]
[331749928,1720752631740,-728.99333017,0.00012017,2]
[331749929,1720752631750,-62.25489368,0.00012042,2]
[331749930,1720752631921,-883.38639551,0.00012042,2]
[331749931,1720752631932,-240.18366781,0.00012042,2]
[331749932,1720752631942,-1000.0,0.00012103,2]
[331749933,1720752631953,-250.0,0.00012117,2]
[331749934,1720752631962,-1487.44867138,0.00012162,2]
[331749935,1720752631973,-1017.04312744,0.00012162,2]
[331749936,1720752631984,-1660.29818461,0.00012162,2]
[331749937,1720752631996,-5863.03001657,0.00012162,2]
[331749938,1720752632005,-250.0,0.00012162,2]
[331749939,1720752632014,-174.08,0.00012173,2]
[331749940,1720752632023,-155.0,0.00012273,2]
[331749941,1720752632032,-177.28827693,0.00012314,2]
[331749942,1720752632041,-150.0,0.00012575,2]
[331749943,1720752632051,-253.2,0.00012589,2]
[331749944,1720752632061,-499.99,0.00012593,2]
[331749945,1720752632071,-150.99,0.00012593,2]
[331749946,1720752632081,-253.2,0.00012593,2]
[331749947,1720752632091,-253.2,0.00012596,2]
[331749948,1720752632100,-253.2,0.00012599,2]
[331749949,1720752632111,-253.2,0.00012603,2]
[331749950,1720752632122,-253.2,0.00012606,2]
[331749951,1720752632132,-253.2,0.00012609,2]
[331749952,1720752632143,-253.2,0.00012613,2]
[331749953,1720752632154,-253.2,0.00012616,2]
[331749954,1720752632164,-253.2,0.00012619,2]
[331749955,1720752632175,-253.2,0.00012623,2]
[331749956,1720752632186,-253.2,0.00012626,2]
[331749957,1720752632196,-253.2,0.00012629,2]
[331749958,1720752632207,-253.2,0.00012633,2]
[331749959,1720752632217,-253.2,0.00012636,2]
[331749960,1720752632226,-253.2,0.00012639,2]
[331749961,1720752632236,-253.2,0.00012642,2]
[331749962,1720752632246,-253.2,0.00012646,2]
[331749963,1720752632256,-253.2,0.00012649,2]
[331749964,1720752632267,-253.2,0.00012652,2]
[331749965,1720752632278,-64690.0,0.00012688,2]
[331749966,1720752632289,-186.76,0.00012855,2]
[331749967,1720752632298,-4420.50641199,0.00012981,2]
[331749968,1720752632308,-702.5,0.00012986,2]
[331749969,1720752632318,-1250.0,0.00013,2]
[331749970,1720752632328,-2100.0,0.00013,4]
[331749971,1720752632339,-4300.0,0.000131,4]
[331749972,1720752632349,-6500.0,0.000132,4]
[331749973,1720752632359,-370.75,0.00013201,2]
[331749974,1720752632368,-586.53552664,0.00013214,2]
[331749975,1720752632377,-245.92879295,0.00013257,2]
[331749976,1720752632387,-8700.0,0.000133,4]
[331749977,1720752632397,-152.790958,0.00013331,2]
[331749978,1720752632408,-506.848744,0.00013331,2]
[331749979,1720752632416,-211.975704,0.00013331,2]
[331749980,1720752632426,-1846.049086,0.00013331,2]
[331749981,1720752632436,-187.078072,0.00013331,2]
[331749982,1720752632447,-187.453998,0.00013331,2]
[331749983,1720752632456,-187.961003,0.00013331,2]
[331749984,1720752632465,-2599.632199,0.00013331,2]
[331749985,1720752632475,-10900.0,0.000134,4]
[331749986,1720752632484,-173.84,0.00013448,2]
[331749987,1720752632496,-152.790958,0.00013498,2]
[331749988,1720752632505,-506.848744,0.00013498,2]
[331749989,1720752632514,-1846.049086,0.00013498,2]
[331749990,1720752632523,-2599.632199,0.00013498,2]
[331749991,1720752632533,-2100.0,0.000135,4]
[331749992,1720752632543,-155.89644386,0.00013516,2]
[331749993,1720752632554,-690.1530307,0.00013545,2]
[331749994,1720752632565,-2100.0,0.000136,4]
[331749995,1720752632574,-1000.0,0.00013615,2]
[331749996,1720752632584,-171.29908894,0.00013641,2]
[331749997,1720752632593,-151.0772783,0.00013653,2]
[331749998,1720752632603,-1167.2736,0.0001366,2]
[331749999,1720752632612,-152.790958,0.00013665,2]
[331750000,1720752632621,-506.848744,0.00013665,2]
[331750001,1720752632630,-1846.049086,0.00013665,2]
[331750002,1720752632639,-2599.632199,0.00013665,2]
[331750003,1720752632650,-151.07727828,0.00013676,2]
[331750004,1720752632660,-150.0,0.00013678,2]
[331750005,1720752632669,-500.0,0.00013689,2]
[331750006,1720752632678,-500.0,0.0001369,2]
[331750007,1720752632688,-169.24841402,0.00013698,2]
[331750008,1720752632697,-151.07727828,0.00013698,2]
[331750009,1720752632706,-310.4515,0.00013698,2]
[331750010,1720752632715,-19124.5531,0.00013698,2]
[331750011,1720752632724,-1000.0,0.00013698,2]
[331750012,1720752632733,-598.947,0.00013698,2]
[331750013,1720752632742,-2742.52,0.00013699,2]
[331750014,1720752632844,-200.0,0.00013699,2]
[331750015,1720752632853,-250.0,0.00013699,2]
[331750016,1720752632863,-10043.34,0.00013699,2]
[331750017,1720752632872,-1216.52,0.00013699,2]
[331750018,1720752632881,-6106.62,0.00013699,2]
[331750019,1720752632890,-1000.0,0.00013699,2]
[331750020,1720752632900,-180.83137186,0.000137,2]
[331750021,1720752632909,-2100.0,0.000137,5]
[331750022,1720752632918,-5000.0,0.00013719,2]
[331750023,1720752632927,-12859.00140225,0.00013736,2]
[331750024,1720752632936,-252.50355158,0.00013736,2]
[331750025,1720752632946,-749.23,0.0001374,2]
[331750026,1720752632955,-749.23,0.0001374,2]
[331750027,1720752632964,-749.23,0.0001374,2]
[331750028,1720752632973,-749.23,0.0001374,2]
[331750029,1720752632982,-505.82,0.00013749,2]
[331750030,1720752632991,-500.0,0.00013749,2]
[331750031,1720752633000,-500.0,0.00013749,2]
[331750032,1720752633010,-607.32,0.00013749,2]
[331750033,1720752633019,-500.0,0.00013749,2]
[331750034,1720752633028,-512.86,0.00013749,2]
[331750035,1720752633037,-500.0,0.00013749,2]
[331750036,1720752633047,-500.0,0.00013749,2]
[331750037,1720752633057,-500.0,0.00013749,2]
[331750038,1720752633066,-500.0,0.00013749,2]
[331750039,1720752633076,-1149.18,0.00013749,2]
[331750040,1720752633085,-732.03,0.00013749,2]
[331750041,1720752633094,-500.0,0.00013749,2]
[331750042,1720752633103,-500.0,0.00013749,2]
[331750043,1720752633113,-500.0,0.00013749,2]
[331750044,1720752633122,-500.0,0.00013749,2]
[331750045,1720752633132,-524.16,0.00013749,2]
[331750046,1720752633142,-500.0,0.00013749,2]
[331750047,1720752633152,-500.0,0.00013749,2]
[331750048,1720752633161,-500.0,0.00013749,2]
[331750049,1720752633171,-700.8,0.00013749,2]
[331750050,1720752633180,-500.0,0.00013749,2]
[331750051,1720752633190,-500.0,0.00013749,2]
[331750052,1720752633200,-500.0,0.00013749,2]
[331750053,1720752633209,-500.0,0.00013749,2]
[331750054,1720752633219,-500.0,0.00013749,2]
[331750055,1720752633228,-500.0,0.00013749,2]
[331750056,1720752633238,-500.0,0.00013749,2]
[331750057,1720752633247,-500.0,0.00013749,2]
[331750058,1720752633257,-500.0,0.00013749,2]
[331750059,1720752633266,-500.0,0.00013749,2]
[331750060,1720752633275,-500.0,0.00013749,2]
[331750061,1720752633284,-628.01,0.00013749,2]
[331750062,1720752633294,-121891.19086267,0.0001375,2]
[331750063,1720752633306,-61977.67913733,0.0001375,2]
[331750064,1720752633316,-151.0,0.0001375,2]
[331750065,1720752633325,-204.833494,0.0001375,2]
[331750066,1720752633334,-151.0,0.0001375,2]
[331750067,1720752633343,-288.196988,0.0001375,2]
[331750068,1720752633352,-288.196988,0.0001375,2]
[331750069,1720752633361,-151.0,0.0001375,2]
[331750070,1720752633371,-844.59333,0.0001375,2]
[331750071,1720752633380,-844.59333,0.0001375,2]
[331750072,1720752633389,-7972.0602,0.0001375,2]
[331750073,1720752633399,-7972.0602,0.0001375,2]
[331750074,1720752633409,-151.0,0.0001375,2]
[331750075,1720752633418,-151.0,0.0001375,2]
[331750076,1720752633427,-1734.09578,0.0001375,2]
[331750077,1720752633436,-1734.09578,0.0001375,2]
[331750078,1720752633446,-151.0,0.0001375,2]
[331750079,1720752633455,-151.0,0.0001375,2]
[331750080,1720752633474,-151.0,0.0001375,2]
[331750081,1720752633491,-151.0,0.0001375,2]
[331750082,1720752633512,-150.0,0.00013753,2]
[331750083,1720752633531,-150.0,0.00013781,2]
[331750084,1720752633552,-150.0,0.00013781,2]
[331750085,1720752633571,-150.0,0.00013781,2]
[331750086,1720752633589,-150.0,0.00013781,2]
[331750087,1720752633603,-271.21179341,0.00013781,2]
[331750088,1720752633620,-150.0,0.00013781,2]
[331750089,1720752633639,-150.0,0.00013781,2]
[331750090,1720752633657,-150.0,0.00013781,2]
[331750091,1720752633670,-4.25166188,0.00013781,2]
[331750092,1720752633692,-145.74833812,0.00013781,2]
[331750093,1720752633708,-150.0,0.00013781,2]
[331750094,1720752633726,-161.16599191,0.00013781,2]
[331750095,1720752633742,-150.0,0.00013781,2]
[331750096,1720752633757,-749.23,0.00013782,2]
[331750097,1720752633772,-150.0,0.00013785,2]
[331750098,1720752633787,-150.0,0.00013787,2]
[331750099,1720752633802,-150.0,0.00013789,2]
[331750100,1720752633818,-150.0,0.00013789,2]
[331750101,1720752633832,-158.66887119,0.0001379,2]
[331750102,1720752633848,-158.66887119,0.0001379,2]
[331750103,1720752633862,-469.82089525,0.00013792,2]
[331750104,1720752633881,-30.17910475,0.00013792,2]
[331750105,1720752633898,-500.0,0.00013792,2]
[331750106,1720752633913,-471.3710234,0.00013792,2]
[331750107,1720752633933,-23.3089766,0.00013792,2]
[331750108,1720752633948,-296.53154638,0.00013792,2]
[331750109,1720752633962,-500.0,0.00013792,2]
[331750110,1720752633978,-187.23534976,0.00013792,2]
[331750111,1720752633996,-312.76465024,0.00013792,2]
[331750112,1720752634012,-295.19353807,0.00013792,2]
[331750113,1720752634032,-204.80646193,0.00013792,2]
[331750114,1720752634049,-217.76713503,0.00013792,2]
[331750127,1720752637624,-500.0,0.00013749,2]
[331750129,1720752637633,-500.0,0.00013749,2]
[331750131,1720752637642,-2.20146567,0.00013749,2]
[331750132,1720752637657,-1084.17957934,0.00013749,2]
[331750133,1720752637669,-1888.89310926,0.00013749,2]
[331750134,1720752637835,-148.83792469,0.00013749,2]
[331750135,1720752637847,-541.31792104,0.00013749,2]
[331750136,1720752637856,-107.50676255,0.0001375,2]
[331750137,1720752637867,-43.49323745,0.0001375,2]
[331750138,1720752637877,-542.78645006,0.0001375,2]
[331750139,1720752637888,-729.17517403,0.0001375,2]
[331750140,1720752637902,-475.82133345,0.0001375,2]
[331750141,1720752637913,-648.76215846,0.0001375,2]
[331750142,1720752637923,-282.23286497,0.00013792,2]
[331750143,1720752637933,-500.0,0.00013792,2]
[331750144,1720752637944,-500.0,0.00013792,2]
[331750145,1720752637954,-47.71207056,0.00013792,2]
[331750146,1720752637966,-105.81792944,0.00013792,2]
[331750147,1720752637975,-476.38173088,0.00013792,2]
[331750148,1720752637987,-23.61826912,0.00013792,2]
[331750149,1720752637997,-501.93491168,0.00013792,2]
[331750150,1720752638006,-500.0,0.00013792,2]
[331750151,1720752638015,-500.0,0.00013792,2]
[331750152,1720752638025,-500.0,0.00013792,2]
[331750153,1720752638035,-500.0,0.00013792,2]
[331750154,1720752638045,-500.0,0.00013792,2]
[331750155,1720752638054,-424.94480557,0.00013792,2]
[331750156,1720752638066,-76.24244451,0.00013792,2]
[331750157,1720752638076,-500.0,0.00013792,2]
[331750158,1720752638085,-500.0,0.00013792,2]
[331750159,1720752638095,-500.0,0.00013792,2]
[331750160,1720752638104,-500.0,0.00013792,2]
[331750161,1720752638114,-500.0,0.00013792,2]
[331750163,1720752638124,-500.0,0.00013792,2]
[331750165,1720752638133,-87.04933362,0.00013792,2]
[331750169,1720752638145,-412.95066638,0.00013792,2]
[331750171,1720752638157,-500.0,0.00013792,2]
[331750172,1720752638166,-500.0,0.00013792,2]
[331750174,1720752638176,-443.61244112,0.00013792,2]
[331750175,1720752638188,-56.38755888,0.00013792,2]
[331750176,1720752638197,-368.4955265,0.00013792,2]
[331750177,1720752638208,-131.5044735,0.00013792,2]
[331750178,1720752638218,-500.0,0.00013792,2]
[331750179,1720752638228,-500.0,0.00013792,2]
[331750180,1720752638238,-500.0,0.00013792,2]
[331750181,1720752638247,-501.93419012,0.00013792,2]
[331750182,1720752638257,-500.0,0.00013792,2]
[331750183,1720752638266,-500.0,0.00013792,2]
[331750184,1720752638276,-273.64058287,0.00013792,2]
[331750185,1720752638288,-226.35941713,0.00013792,2]
[331750186,1720752638298,-500.0,0.00013792,2]
[331750187,1720752638307,-500.0,0.00013792,2]
[331750188,1720752638317,-500.0,0.00013792,2]
[331750189,1720752638326,-272.69463108,0.00013792,2]
[331750190,1720752638338,-227.30536892,0.00013792,2]
[331750191,1720752638347,-500.0,0.00013792,2]
[331750192,1720752638357,-500.0,0.00013792,2]
[331750193,1720752638366,-500.0,0.00013792,2]
[331750194,1720752638375,-500.0,0.00013792,2]
[331750195,1720752638385,-500.0,0.00013792,2]
[331750196,1720752638394,-500.0,0.00013792,2]
[331750197,1720752638409,-500.0,0.00013792,2]
[331750198,1720752638418,-531.02525497,0.00013792,2]
[331750199,1720752638428,-500.0,0.00013792,2]
[331750200,1720752638438,-500.0,0.00013792,2]
[331750201,1720752638448,-500.0,0.00013792,2]
[331750202,1720752638457,-500.0,0.00013792,2]
[331750203,1720752638467,-500.0,0.00013792,2]
[331750204,1720752638476,-500.0,0.00013792,2]
[331750205,1720752638486,-500.0,0.00013792,2]
[331750206,1720752638499,-500.0,0.00013792,2]
[331750207,1720752638508,-500.0,0.00013792,2]
[331750208,1720752638518,-500.0,0.00013792,2]
[331750209,1720752638528,-500.0,0.00013792,2]
[331750210,1720752638538,-500.0,0.00013792,2]
[331750211,1720752638547,-500.0,0.00013792,2]